bitfinex/quotes_ETHUSD_20260302
["timestamp","ask_amount","ask_price","bid_price","bid_amount"]
[1772480610575,3.74319776,2033.8,2033.7,0.001]
[1772480610781,4.97234864,2034.0,2033.7,0.001]
[1772480610958,3.74319776,2034.0,2033.7,0.001]
[1772480611163,4.97230507,2034.0,2033.7,0.001]
[1772480611474,3.74319776,2034.0,2033.7,0.001]
[1772480611676,4.9723083,2034.0,2033.7,0.001]
[1772480612462,4.97230544,2034.0,2033.7,0.001]
[1772480612980,3.74319776,2034.0,2033.7,0.001]
[1772480613348,4.97230702,2034.0,2033.7,0.001]
[1772480616992,4.97223236,2034.2,2033.7,0.001]
[1772480617564,3.74319776,2034.1,2033.7,1.23028652]
[1772480618485,7.18212171,2034.3,2033.8,3.68341681]
[1772480618687,1.22891654,2034.4,2033.8,3.68341681]
[1772480618897,4.9721143,2034.4,2033.8,3.68341681]
[1772480619104,3.74319776,2034.3,2033.7,6.90270333]
[1772480619469,1.22898436,2034.2,2033.7,6.90270333]
[1772480619704,3.74319776,2034.1,2033.7,6.90270333]
[1772480620601,3.74319776,2034.1,2033.5,0.001]
[1772480620770,3.74319776,2034.0,2033.5,0.001]
[1772480621587,4.9723634,2033.9,2033.5,0.001]
[1772480621968,3.74319776,2034.1,2033.5,3.68441681]
[1772480622174,8.65876836,2034.4,2033.7,3.68341681]
[1772480622596,3.74319776,2034.3,2033.5,3.68441681]
[1772480622774,3.74319776,2034.2,2033.5,0.001]
[1772480622968,0.002,2033.9,2033.5,0.001]
[1772480623169,3.74519776,2033.9,2033.5,0.001]
[1772480623376,3.74519776,2033.9,2033.7,0.001]
[1772480623775,1.22922607,2033.8,2033.7,0.001]
[1772480624496,4.97242383,2033.8,2033.7,0.001]
[1772480626799,3.74319776,2033.8,2033.7,0.001]
[1772480627001,1.23116576,2033.9,2033.7,0.001]
[1772480627806,0.002,2033.9,2033.7,0.001]
[1772480628600,1.23117225,2033.9,2033.7,0.001]
[1772480629292,0.002,2033.9,2033.7,0.001]
[1772480629690,1.2308962,2034.4,2033.9,3.58797819]
[1772480629902,3.74579428,2034.2,2033.7,0.001]
[1772480630106,3.74579428,2034.2,2033.7,3.58897819]
[1772480630810,4.91818345,2034.2,2033.7,3.58897819]
[1772480631006,0.002,2034.4,2033.7,3.58897819]
[1772480631314,4.91818345,2034.3,2033.9,3.58797819]
[1772480631512,6.14711201,2034.3,2033.9,3.58797819]
[1772480631896,8.66397773,2034.2,2033.8,1.22922607]
[1772480632096,3.74579428,2034.1,2033.7,1.23025644]
[1772480632297,3.74579428,2034.0,2033.7,1.23025644]
[1772480632502,1.22892856,2034.3,2033.7,1.23025644]
[1772480632705,3.74579428,2034.1,2033.7,0.001]
[1772480633507,4.97489949,2034.0,2033.7,0.001]
[1772480634818,3.74579428,2033.8,2033.5,0.001]
[1772480635328,3.74579428,2033.8,2033.5,1.23040574]
[1772480636006,3.74579428,2033.8,2033.5,0.001]
[1772480636407,3.74579428,2033.8,2033.7,0.001]
[1772480638724,6.87501447,2033.9,2033.7,0.001]
[1772480638927,0.002,2033.9,2033.7,0.001]
[1772480639916,1.23117894,2033.9,2033.7,0.001]
[1772480640728,0.002,2033.9,2033.7,0.001]
[1772480641136,0.002,2033.9,2033.7,3.58897819]
[1772480642833,3.74779428,2033.9,2033.7,0.001]
[1772480643028,3.74579428,2033.8,2033.5,0.001]
[1772480644409,8.66397773,2033.8,2033.5,0.001]
[1772480645214,9.89321666,2033.8,2033.5,0.001]
[1772480645536,0.002,2034.1,2033.6,0.03762254]
[1772480645833,1.01458638,2034.0,2033.6,0.03762254]
[1772480646639,0.002,2034.1,2033.8,0.15045973]
[1772480646844,1.01658638,2034.1,2033.8,0.15045973]
[1772480647048,7.34054899,2034.4,2033.9,1.22916564]
[1772480647233,5.10754637,2034.4,2033.9,1.22916564]
[1772480647748,3.87868132,2034.4,2033.9,1.22916564]
[1772480647945,4.60229935,2034.3,2033.8,1.22920743]
[1772480648460,4.36028814,2034.3,2033.8,1.22920743]
[1772480649147,5.58921237,2034.3,2033.8,1.23020743]
[1772480649349,4.36028814,2034.3,2033.8,1.23020743]
[1772480649730,5.58921228,2034.3,2033.8,1.23020743]
[1772480649936,0.002,2034.0,2033.8,1.23020743]
[1772480651130,0.002,2034.4,2033.9,0.16942982]
[1772480653445,0.002,2034.4,2034.1,0.16107189]
[1772480653644,0.002,2034.4,2034.2,2.15107189]
[1772480654578,0.002,2034.4,2034.0,1.22910521]
[1772480654579,3.87868132,2034.4,2034.0,1.22910521]
[1772480654788,4.36028814,2034.3,2033.9,1.22912572]
[1772480655085,3.87668132,2034.3,2033.9,1.22912572]
[1772480657741,3.93941015,2034.2,2033.8,1.994]
[1772480658452,3.93941015,2033.8,2033.5,0.001]
[1772480658664,3.93941015,2033.8,2033.5,1.23040461]
[1772480659263,3.93941015,2034.0,2033.5,1.23040461]
[1772480659497,3.93941015,2034.0,2033.5,1.3775811]
[1772480660870,0.002,2034.4,2033.7,0.14422636]
[1772480661067,3.93941015,2034.3,2033.7,0.14422636]
[1772480662703,3.93941015,2034.3,2034.0,0.001]
[1772480662704,3.93941015,2034.2,2034.0,0.001]
[1772480662906,3.93941015,2034.2,2033.6,1.22934197]
[1772480663208,3.93941015,2033.9,2033.8,0.001]
[1772480664294,0.002,2034.0,2033.8,0.001]
[1772480668298,3.94141015,2034.0,2033.8,0.001]
[1772480671602,0.002,2034.0,2033.8,0.001]
[1772480674334,3.94141015,2034.0,2033.8,0.001]
[1772480675320,5.17052,2034.0,2033.8,0.001]
[1772480675518,3.93941015,2033.9,2033.5,0.001]
[1772480675720,3.93941015,2033.9,2033.5,1.23040528]
[1772480676322,3.93941015,2033.9,2033.5,0.001]
[1772480677258,5.16863622,2033.8,2033.5,0.001]
[1772480679622,3.93941015,2033.7,2033.5,0.001]
[1772480679859,1.7127924,2033.8,2033.3,0.001]
[1772480679860,3.93941015,2033.5,2033.3,0.001]
[1772480680083,1.22922607,2033.8,2032.6,3.31286639]
[1772480680084,3.93941015,2033.3,2032.6,3.31286639]
[1772480680274,4.42297648,2033.1,2032.5,1.2300123]
[1772480680739,4.42297648,2033.1,2032.4,0.08896298]
[1772480680937,3.93941015,2032.7,2032.1,3.22425441]
[1772480681140,4.42297648,2032.7,2032.1,1.994]
[1772480681436,4.42297648,2032.7,2032.1,3.22425048]
[1772480681437,3.93941015,2032.5,2032.1,3.22425048]
[1772480682449,3.93941015,2032.8,2032.1,3.22425048]
[1772480682620,3.93941015,2033.0,2032.2,0.077998]
[1772480682821,2.42119266,2033.3,2032.2,0.077998]
[1772480682822,3.93941015,2033.2,2032.2,0.077998]
[1772480683457,6.70606633,2033.4,2032.5,0.07398789]
[1772480683458,1.788,2033.4,2032.5,0.07398789]
[1772480683752,5.72741015,2033.4,2032.6,2.06798789]
[1772480683919,3.93941015,2033.3,2032.6,2.06798789]
[1772480686161,5.16894686,2033.3,2032.7,1.22989127]
[1772480686385,5.16894686,2033.3,2032.8,0.001]
[1772480686961,3.93941015,2033.3,2032.8,0.001]
[1772480687273,5.16893879,2033.3,2032.8,0.001]
[1772480687868,3.93941015,2033.3,2032.8,0.001]
[1772480688074,5.16893958,2033.3,2032.8,0.001]
[1772480689294,3.93941015,2033.3,2032.8,0.001]
[1772480689669,5.16894026,2033.3,2032.8,0.001]
[1772480689876,3.87568132,2033.2,2032.8,0.001]
[1772480690767,3.87568132,2033.4,2032.8,0.001]
[1772480692681,3.87568132,2033.3,2032.8,0.001]
[1772480694813,3.87568132,2033.1,2032.8,0.001]
[1772480696607,3.87518132,2032.9,2032.5,0.001]
[1772480698290,3.87518132,2033.1,2032.5,0.01673374]
[1772480698495,5.10483216,2033.1,2032.5,0.01673374]
[1772480698690,3.87518132,2033.0,2032.5,0.001]
[1772480700429,3.87518132,2033.0,2032.8,0.001]
[1772480700804,5.10495159,2032.9,2032.8,0.001]
[1772480701688,3.87518132,2032.9,2032.8,0.001]
[1772480701890,2.231,2033.1,2032.8,0.001]
[1772480701891,0.002,2033.1,2032.8,0.001]
[1772480702692,5.1065587,2033.6,2032.8,0.001]
[1772480703024,0.004,2033.5,2032.8,0.001]
[1772480703395,3.87918132,2033.5,2032.8,0.001]
[1772480704993,3.87518132,2033.3,2032.8,0.001]
[1772480705794,0.004,2033.2,2032.8,0.001]
[1772480708350,3.87518132,2033.5,2032.8,2.42219266]
[1772480708550,0.004,2033.4,2032.8,0.001]
[1772480710446,3.87918132,2033.3,2032.8,0.001]
[1772480712254,3.87518132,2033.1,2032.8,0.001]
[1772480712760,3.87518132,2033.0,2032.8,0.001]
[1772480712966,3.87518132,2033.0,2032.4,1.2300123]
[1772480713254,0.004,2032.9,2032.4,1.2300123]
[1772480713633,3.87868132,2032.9,2032.4,1.2300123]
[1772480714164,3.87868132,2032.9,2032.8,0.001]
[1772480715124,0.004,2032.9,2032.8,0.001]
[1772480716427,5.1042345,2033.3,2032.8,0.001]
[1772480716628,3.87868132,2033.1,2032.8,0.001]
[1772480717238,3.87868132,2033.0,2032.8,0.001]
[1772480717454,3.87468132,2033.0,2032.8,0.001]
[1772480717649,0.004,2033.0,2032.8,0.001]
[1772480717866,3.87468132,2033.3,2032.8,0.001]
[1772480718046,0.004,2033.2,2032.8,0.001]
[1772480718757,3.87868132,2033.1,2032.8,0.001]
[1772480721059,0.004,2033.1,2032.8,0.001]
[1772480722267,3.87668132,2033.4,2032.8,0.001]
[1772480722878,0.002,2033.4,2032.8,0.001]
[1772480723086,0.004,2033.3,2032.8,0.001]
[1772480724657,0.004,2033.3,2032.8,1.23083077]
[1772480726254,0.004,2033.2,2032.8,1.23083077]
[1772480726861,0.004,2033.2,2033.0,0.001]
[1772480727075,0.002,2033.4,2033.0,0.001]
[1772480727480,0.002,2033.3,2033.0,0.001]
[1772480731186,0.002,2033.8,2033.0,0.001]
[1772480734463,0.002,2033.8,2033.2,0.6]
[1772480734661,0.002,2033.8,2033.3,1.972]
[1772480735587,3.87668132,2033.8,2033.4,1.22946788]
[1772480735796,0.002,2033.8,2033.4,1.22946788]
[1772480736393,0.002,2033.8,2033.4,3.20146788]
[1772480737800,0.002,2033.8,2033.2,1.22953841]
[1772480737801,3.87668132,2033.8,2033.2,1.22953841]
[1772480739885,3.87668132,2033.8,2033.2,1.23053841]
[1772480740204,0.002,2033.6,2033.2,1.23053841]
[1772480743618,3.87668132,2033.6,2033.2,0.001]
[1772480744598,3.87468132,2033.5,2033.2,0.001]
[1772480744924,3.87668132,2033.6,2033.2,0.001]
[1772480745728,0.002,2033.6,2033.2,0.001]
[1772480749114,3.87668132,2033.6,2033.2,0.001]
[1772480750854,0.002,2033.6,2033.2,0.001]
[1772480752265,3.87668132,2033.8,2033.2,0.001]
[1772480752979,3.87668132,2033.8,2033.4,0.001]
[1772480753549,0.002,2033.6,2033.4,0.001]
[1772480753875,3.87468132,2033.6,2033.4,0.001]
[1772480754177,3.76923335,2033.7,2033.4,0.001]
[1772480756350,3.76923335,2033.7,2033.4,1.23046788]
[1772480757374,5.00045993,2033.8,2033.4,0.001]
[1772480757540,3.76923335,2033.7,2033.4,0.001]
[1772480758456,4.99852972,2033.7,2033.4,0.001]
[1772480758647,3.76923335,2033.6,2033.4,0.001]
[1772480759060,3.76923335,2033.6,2033.2,0.001]
[1772480760387,1.2292929,2033.7,2033.2,0.001]
[1772480760388,4.99858032,2033.7,2033.2,0.001]
[1772480760595,3.76923335,2033.6,2033.2,0.001]
[1772480762691,3.76923335,2033.5,2033.2,0.001]
[1772480765095,4.99864835,2033.5,2033.2,0.001]
[1772480765295,3.76923335,2033.4,2033.2,0.001]
[1772480765708,3.77123335,2033.4,2033.2,0.001]
[1772480765876,3.77123335,2033.4,2033.0,0.001]
[1772480766076,3.77123335,2033.4,2032.9,0.001]
[1772480766275,3.77123335,2033.4,2032.9,0.002]
[1772480766499,3.77123335,2033.4,2032.9,1.23176073]
[1772480766698,3.77123335,2033.4,2032.9,4.68998361]
[1772480766923,5.00074973,2033.4,2032.9,4.68998361]
[1772480768625,3.77123335,2033.4,2032.9,4.68998361]
[1772480768994,0.002,2033.4,2033.1,3.45822288]
[1772480770619,3.77123335,2033.6,2033.2,0.001]
[1772480771814,5.00058049,2033.6,2033.2,1.23058882]
[1772480772326,3.77123335,2033.6,2033.2,1.23058882]
[1772480776510,3.77123335,2033.6,2033.2,3.53590028]
[1772480778223,3.77123335,2033.6,2033.4,0.001]
[1772480779227,3.6272432,2033.8,2033.4,3.82501964]
[1772480779415,0.002,2033.8,2033.5,4.30784528]
[1772480779601,0.002,2033.8,2033.5,3.82401964]
[1772480780606,3.6272432,2033.8,2033.6,0.001]
[1772480780812,3.6272432,2033.8,2033.4,3.21742257]
[1772480781233,3.6272432,2033.8,2033.5,0.001]
[1772480781437,3.6252432,2033.7,2033.4,1.988]
[1772480781602,3.6252432,2033.7,2033.4,1.989]
[1772480782015,0.002,2033.8,2033.4,3.21845907]
[1772480782355,0.002,2033.8,2033.5,3.82401964]
[1772480783549,0.002,2033.8,2033.6,1.22934697]
[1772480783748,0.002,2033.9,2033.7,3.82401964]
[1772480783957,3.6272432,2034.0,2033.6,1.23034697]
[1772480785020,3.6272432,2034.0,2033.6,5.05436661]
[1772480785530,3.6272432,2034.0,2033.6,1.23034697]
[1772480786048,3.6272432,2034.0,2033.4,1.23041658]
[1772480786049,3.6252432,2033.9,2033.4,1.23041658]
[1772480787453,3.6252432,2033.7,2033.4,1.23041658]
[1772480788719,3.6252432,2033.9,2033.4,1.23041658]
[1772480789150,1.22916917,2033.9,2033.4,1.23041658]
[1772480789353,3.6252432,2033.8,2033.4,1.23041658]
[1772480789930,3.6252432,2033.8,2033.6,0.001]
[1772480790267,0.002,2033.8,2033.6,0.001]
[1772480791239,3.6272432,2033.8,2033.6,0.001]
[1772480791630,3.6272432,2033.8,2033.2,0.001]
[1772480791631,3.6252432,2033.7,2033.2,0.001]
[1772480791858,3.6252432,2033.7,2032.9,0.001]
[1772480791859,3.6252432,2033.4,2032.9,1.23076618]
[1772480792030,3.6252432,2033.4,2032.9,0.001]
[1772480792031,3.6252432,2033.2,2032.9,0.001]
[1772480799265,3.6252432,2033.1,2032.9,0.001]
[1772480800084,4.85477553,2033.3,2032.9,3.82501964]
[1772480800879,3.6252432,2033.2,2032.9,0.001]
[1772480801898,3.6252432,2033.2,2033.1,0.001]
[1772480802984,4.85483202,2033.2,2033.1,0.001]
[1772480804668,1.22958882,2033.2,2032.9,0.001]
[1772480804874,3.6252432,2033.1,2032.9,0.001]
[1772480805486,3.6252432,2033.1,2032.6,3.23690113]
[1772480805487,3.6252432,2033.0,2032.6,0.001]
[1772480806001,3.6252432,2033.0,2032.6,1.23094228]
[1772480806571,3.6252432,2033.0,2032.6,5.05496192]
[1772480806871,0.002,2033.3,2032.7,3.82401964]
[1772480806872,3.6272432,2033.3,2032.7,3.82401964]
[1772480807072,0.002,2033.3,2032.7,3.82401964]
[1772480807292,3.6272432,2033.3,2032.7,3.82401964]
[1772480807509,3.6272432,2033.3,2032.8,1.22983077]
[1772480808507,3.67455203,2033.2,2032.7,1.2298416]
[1772480808684,3.67455203,2033.2,2032.7,4.92769489]
[1772480809705,0.002,2033.3,2032.8,3.69785329]
[1772480811108,0.002,2033.3,2033.0,3.69785329]
[1772480811274,0.002,2033.3,2033.0,5.70485329]
[1772480811678,0.002,2033.3,2033.1,1.2296493]
[1772480811877,3.67655203,2033.3,2033.0,3.23667543]
[1772480814294,3.67655203,2033.3,2033.0,3.23967543]
[1772480814493,3.67655203,2033.3,2033.0,3.72349141]
[1772480814695,0.002,2033.3,2033.0,3.72349141]
[1772480815208,0.002,2033.3,2033.0,3.72449141]
[1772480815410,0.002,2033.1,2033.0,1.71449141]
[1772480816692,0.002,2033.1,2033.0,3.72849141]
[1772480817116,0.002,2033.1,2033.0,3.24467543]
[1772480818413,0.002,2033.3,2033.0,3.72849141]
[1772480819115,0.002,2033.6,2033.2,4.18166927]
[1772480819368,0.002,2033.6,2033.3,6.19966927]
[1772480820393,0.002,2033.6,2033.4,1.22946788]
[1772480822095,0.002,2033.6,2033.4,4.92732117]
[1772480822297,0.00303995,2034.0,2033.7,0.48381598]
[1772480822623,0.002,2034.2,2033.9,0.48381598]
[1772480822789,0.002,2034.2,2033.9,6.30576236]
[1772480823520,0.002,2034.2,2034.1,0.48381598]
[1772480824606,0.002,2034.2,2034.1,1.22904478]
[1772480824820,0.002,2034.2,2034.1,5.02899116]
[1772480825023,0.002,2034.5,2034.2,3.79894638]
[1772480826325,0.002,2034.5,2034.2,5.82394638]
[1772480826630,0.002,2034.5,2034.2,7.05288715]
[1772480828117,1.23059411,2034.9,2034.2,7.05288715]
[1772480828118,0.18206703,2034.9,2034.4,3.87957746]
[1772480828498,0.002,2034.9,2034.6,5.10832021]
[1772480828694,0.002,2034.9,2034.7,3.87957746]
[1772480828901,0.18446958,2035.5,2034.9,3.87957746]
[1772480829336,0.19369155,2035.3,2034.8,2.028]
[1772480829800,0.19369155,2035.3,2034.7,2.029]
[1772480830430,0.19369155,2035.3,2034.7,5.90857746]
[1772480830631,0.19369155,2035.3,2034.8,1.22862197]
[1772480830839,1.42202215,2035.3,2034.8,5.10819943]
[1772480831214,0.19369155,2035.3,2034.8,5.10819943]
[1772480831415,1.42202998,2035.3,2034.8,5.10819943]
[1772480831715,0.19369155,2035.3,2034.8,3.87957746]
[1772480831915,1.4220183,2035.3,2034.8,3.87957746]
[1772480832651,1.23029937,2035.4,2034.9,3.87957746]
[1772480832959,1.23026124,2035.4,2034.9,3.87957746]
[1772480833460,0.002,2035.4,2034.9,3.87957746]
[1772480834936,1.23027965,2035.4,2034.9,5.10808502]
[1772480835315,1.45583888,2035.4,2034.9,3.87957746]
[1772480835752,0.22555923,2035.3,2034.7,3.25764028]
[1772480836045,0.22555923,2035.3,2034.7,7.20468819]
[1772480836215,0.22555923,2035.3,2034.8,3.94704791]
[1772480836862,1.23027965,2035.4,2034.9,1.2285616]
[1772480837048,1.23027965,2035.4,2034.9,5.17560951]
[1772480838052,0.002,2035.4,2035.0,3.87957746]
[1772480839257,0.002,2035.4,2035.0,7.14002969]
[1772480840536,0.002,2035.2,2035.0,7.14002969]
[1772480841549,0.002,2035.4,2035.1,3.87957746]
[1772480841962,0.002,2035.4,2035.0,3.26045223]
[1772480842433,0.002,2035.4,2035.0,7.13902969]
[1772480843163,0.26015084,2035.4,2035.0,7.13902969]
[1772480843733,1.48841871,2035.4,2035.0,7.13902969]
[1772480844154,1.23026787,2035.4,2035.0,7.13902969]
[1772480844354,1.23026787,2035.4,2035.1,3.87857746]
[1772480844752,0.002,2035.4,2035.1,3.87857746]
[1772480848572,0.002,2035.4,2035.2,4.60293858]
[1772480848784,0.002,2036.1,2035.6,3.71537422]
[1772480849095,0.60790155,2035.8,2035.3,2.039]
[1772480849240,0.62255927,2036.0,2035.4,3.71537422]
[1772480849433,0.002,2035.8,2035.4,3.71537422]
[1772480849690,0.62255927,2035.8,2035.3,2.039]
[1772480849848,0.002,2035.7,2035.3,5.75437422]
[1772480851173,1.22789783,2036.0,2035.4,3.71537422]
[1772480851878,0.62792754,2035.9,2035.4,3.71537422]
[1772480852239,0.002,2035.8,2035.4,3.71537422]
[1772480852490,0.62846646,2035.7,2035.0,4.94383697]
[1772480852640,0.63046646,2035.7,2035.1,3.71537422]
[1772480852840,0.002,2035.6,2035.2,3.71637422]
[1772480853088,0.004,2035.6,2035.2,3.71637422]
[1772480853325,1.23213912,2035.6,2035.2,3.71637422]
[1772480853532,0.002,2035.6,2035.3,3.71537422]
[1772480853983,0.63293656,2036.1,2035.7,3.71537422]
[1772480853984,0.002,2036.1,2035.7,3.71537422]
[1772480854185,0.002,2036.1,2035.9,3.71537422]
[1772480858020,4.91017184,2036.6,2036.0,3.71537422]
[1772480858021,1.22756699,2036.6,2036.0,3.71537422]
[1772480858588,0.64447852,2036.9,2036.2,3.71537422]
[1772480858905,1.22723479,2037.1,2036.5,3.71537422]
[1772480859223,5.90947686,2037.2,2036.5,3.71537422]
[1772480859224,1.58338584,2037.2,2036.5,3.71537422]
[1772480859389,0.35620821,2037.2,2036.7,3.71537422]
[1772480859582,0.35620821,2037.2,2036.8,3.71537422]
[1772480860315,1.22687343,2037.7,2036.8,3.71537422]
[1772480860613,1.87345533,2037.8,2036.8,3.71537422]
[1772480860803,1.22684739,2037.8,2036.8,3.71537422]
[1772480862019,4.9072231,2037.9,2037.0,3.71537422]
[1772480862193,4.9072231,2037.9,2037.2,3.71537422]
[1772480862515,1.22675303,2037.9,2037.2,3.71537422]
[1772480862909,1.22673101,2038.0,2037.2,3.71537422]
[1772480863419,0.6628753,2037.9,2037.0,3.71537422]
[1772480864523,0.66638225,2037.7,2037.0,3.71537422]
[1772480866217,1.22681322,2037.8,2037.0,3.71537422]
[1772480866516,0.002,2037.5,2037.2,3.71537422]
[1772480868322,0.002,2037.5,2036.9,2.039]
[1772480868323,1.22705408,2037.4,2036.9,2.039]
[1772480868613,1.22705408,2037.4,2036.9,5.74999083]
[1772480868803,1.22705408,2037.4,2037.0,3.71099083]
[1772480869007,0.002,2037.5,2037.0,3.71099083]
[1772480870629,0.002,2037.7,2037.2,3.70999083]
[1772480870914,0.002,2037.7,2037.4,3.70999083]
[1772480871318,0.002,2038.0,2037.4,3.70999083]
[1772480872021,1.22869445,2038.0,2037.4,3.70999083]
[1772480872217,1.22869445,2038.0,2037.4,5.74999083]
[1772480872624,1.91418656,2038.0,2037.4,5.74999083]
[1772480872818,0.68549211,2037.9,2037.3,3.26710899]
[1772480873599,0.68549211,2037.9,2037.3,3.26710311]
[1772480874302,0.68549211,2037.9,2037.3,6.97709394]
[1772480875232,1.22681322,2037.8,2037.3,6.97709394]
[1772480878400,1.22681322,2037.8,2037.4,3.70999083]
[1772480878602,0.002,2038.0,2037.4,3.70999083]
[1772480878799,1.22675425,2037.9,2037.4,3.70999083]
[1772480879134,1.2287266,2038.0,2037.4,3.70999083]
[1772480879634,0.002,2037.8,2037.4,3.70999083]
[1772480880505,0.002,2037.8,2037.4,4.9370141]
[1772480880935,0.002,2037.8,2037.5,3.70899083]
[1772480883942,0.002,2038.0,2037.6,3.70899083]
[1772480884907,0.002,2038.0,2037.7,2.048]
[1772480885227,0.70054892,2038.0,2037.3,10.66533602]
[1772480885626,0.70054892,2038.0,2037.4,3.70899083]
[1772480885932,1.22675303,2037.9,2037.4,4.9359864]
[1772480887536,0.002,2038.0,2037.5,3.70899083]
[1772480887733,1.2287038,2038.0,2037.5,3.70899083]
[1772480888135,0.002,2038.0,2037.5,4.93596887]
[1772480890850,0.70365175,2038.0,2037.3,5.75699083]
[1772480891025,0.70365175,2038.0,2037.2,0.001]
[1772480891026,0.70365175,2038.0,2037.2,2.053]
[1772480891340,0.70365175,2038.0,2037.6,0.001]
[1772480891847,0.70398041,2037.7,2037.2,2.053]
[1772480892024,0.70398041,2037.7,2037.4,0.001]
[1772480892762,1.22693364,2037.6,2037.4,0.001]
[1772480894083,0.70260529,2037.5,2037.4,0.001]
[1772480895121,1.92959915,2037.5,2037.4,0.001]
[1772480896247,1.93590501,2037.7,2037.4,0.001]
[1772480896450,1.22891835,2037.7,2037.4,0.001]
[1772480896823,1.93600407,2037.7,2037.4,0.001]
[1772480899941,3.7704106,2037.6,2037.2,0.001]
[1772480900664,1.22699386,2037.5,2037.2,3.79434726]
[1772480902272,3.7704106,2037.4,2037.0,0.001]
[1772480902666,1.22709006,2037.4,2037.0,3.79434726]
[1772480903048,4.99745462,2037.5,2037.0,3.79434726]
[1772480904342,4.99745462,2037.5,2037.4,0.001]
[1772480904544,4.99945462,2037.5,2037.4,0.001]
[1772480906886,3.7704106,2037.4,2037.2,0.001]
[1772480908047,1.22904402,2037.5,2037.2,0.001]
[1772480909507,0.002,2037.5,2037.2,3.79434726]
[1772480914688,3.7724106,2037.5,2037.2,0.001]
[1772480915884,3.7704106,2037.3,2036.9,0.001]
[1772480917361,3.7724106,2037.3,2036.9,0.001]
[1772480917672,3.7724106,2037.3,2037.2,0.001]
[1772480917990,4.99952491,2037.3,2037.2,0.001]
[1772480919792,1.22911431,2037.3,2037.2,0.001]
[1772480919975,0.002,2037.3,2037.2,0.001]
[1772480921373,1.22904261,2037.5,2037.2,3.79434726]
[1772480922288,0.002,2037.5,2037.2,3.79434726]
[1772480923169,0.002,2037.5,2037.3,3.79334726]
[1772480925396,0.002,2037.5,2037.3,5.02045575]
[1772480925769,0.002,2037.5,2037.4,3.79334726]
[1772480928805,0.002,2037.5,2037.2,4.09631387]
[1772480929104,0.002,2037.5,2037.2,0.001]
[1772480929306,0.002,2037.7,2037.3,4.09531387]
[1772480929999,0.002,2037.7,2037.4,0.001]
[1772480930489,0.002,2037.5,2037.4,0.001]
[1772480933103,0.002,2037.5,2037.4,4.09631387]
[1772480934515,0.002,2037.5,2037.4,0.001]
[1772480937982,3.90575284,2037.5,2037.2,0.001]
[1772480939408,0.002,2037.5,2037.2,4.09631387]
[1772480941091,0.002,2037.5,2036.9,4.09631387]
[1772480941092,4.38569639,2037.3,2036.9,4.09631387]
[1772480941313,3.90375284,2037.3,2036.9,5.32366058]
[1772480941608,3.90375284,2037.3,2036.9,4.09631387]
[1772480941810,3.90375284,2037.3,2036.9,0.001]
[1772480942018,4.38569639,2037.3,2036.9,0.001]
[1772480942320,3.90575284,2037.3,2036.9,0.001]
[1772480942486,3.90575284,2037.3,2036.7,0.001]
[1772480942810,3.90575284,2037.3,2036.4,5.32296823]
[1772480943009,3.90575284,2037.3,2036.5,5.32290522]
[1772480943010,3.90375284,2037.1,2036.5,5.32290522]
[1772480943209,3.90375284,2037.1,2036.6,4.09531387]
[1772480943418,3.90375284,2037.0,2036.6,4.09531387]
[1772480943635,3.90375284,2037.0,2036.3,4.09531387]
[1772480946520,4.90882892,2037.2,2036.5,4.09531387]
[1772480946690,7.33790847,2037.3,2036.5,4.09531387]
[1772480946888,0.002,2037.3,2036.8,4.09531387]
[1772480948615,0.002,2037.3,2037.0,4.09531387]
[1772480949214,0.002,2037.3,2036.9,4.09531387]
[1772480950800,0.002,2037.3,2037.0,1.22729504]
[1772480951002,0.002,2037.3,2037.0,5.32260891]
[1772480953520,0.002,2037.3,2036.8,4.09531387]
[1772480954305,0.002,2037.3,2036.8,4.09631387]
[1772480954500,0.002,2037.1,2036.8,4.09631387]
[1772480955413,0.002,2037.3,2037.0,3.74353309]
[1772480955615,0.002,2037.5,2037.0,3.74353309]
[1772480956122,0.002,2037.5,2037.1,3.74353309]
[1772480957912,0.002,2037.5,2037.3,3.93319728]
[1772480960044,0.002,2037.5,2037.4,3.93319728]
[1772480961039,0.002,2037.7,2037.4,3.93319728]
[1772480962231,0.002,2037.7,2037.5,5.16019114]
[1772480962800,0.002,2037.7,2037.3,3.29208527]
[1772480963021,0.002,2037.7,2037.4,3.93319728]
[1772480964232,0.002,2037.7,2037.5,1.22699386]
[1772480964730,0.002,2037.7,2037.5,5.16019114]
[1772480967054,0.002,2037.8,2037.6,3.93319728]
[1772480968018,0.002,2037.7,2037.6,3.93319728]
[1772480968416,0.002,2037.7,2037.6,5.16013092]
[1772480968643,0.002,2037.7,2037.6,1.22693364]
[1772480969032,0.002,2037.7,2037.5,5.16115238]
[1772480972063,3.95221495,2037.7,2037.5,0.001]
[1772480972251,3.95221495,2037.7,2037.5,1.22798727]
[1772480972433,0.002,2037.7,2037.5,5.16118455]
[1772480975839,3.95221495,2037.7,2037.5,0.001]
[1772480976542,0.002,2037.7,2037.5,0.001]
[1772480976744,0.002,2037.7,2037.5,5.1611902]
[1772480976948,0.002,2038.0,2037.7,3.93319728]
[1772480977125,5.17646631,2038.8,2037.9,3.93319728]
[1772480977328,7.09973726,2038.9,2037.6,8.5897231]
[1772480977329,1.2260699,2039.1,2038.4,3.93319728]
[1772480977527,1.2260699,2039.1,2038.5,3.93319728]
[1772480977728,5.17628485,2039.1,2038.5,3.93319728]
[1772480978034,5.17628485,2039.1,2038.3,0.7226359]
[1772480978035,4.67285085,2039.0,2038.3,3.93319728]
[1772480978536,3.95021495,2039.0,2038.3,3.93319728]
[1772480979063,3.95021495,2039.0,2038.3,6.01919728]
[1772480979550,1.2260699,2039.1,2038.4,3.93319728]
[1772480979953,0.002,2038.6,2038.5,5.15958923]
[1772480980325,0.002,2038.6,2038.5,3.93319728]
[1772480982556,0.002,2038.6,2038.4,2.089]
[1772480982861,0.002,2038.6,2038.4,6.02219728]